[Event "8. Arber-Schachopen 2019"]
[Site "Bodenmais"]
[Date "2019.07.30"]
[Round "4.7"]
[White "Schleining, Zoya"]
[Black "Rotstein, Arkadij"]
[Result "1/2-1/2"]
[ECO "B06"]
[WhiteElo "2339"]
[BlackElo "2471"]
[Annotator "ChessBase"]
[PlyCount "158"]
[EventDate "2019.07.27"]
[EventCountry "GER"]
[SourceTitle "playchess.com"]
[Source "ChessBase"]
[SourceQuality "1"]
[TimeControl "40/5400+30:1800+30"]

1. d4 {[%emt 0:00:00]} g6 {[%emt 0:00:00]} 2. e4 {[%emt 0:00:00]} Bg7 {[%emt 0:00:00]} 3. Nc3 {[%emt 0:00:00]} c6 {[%emt 0:00:32]} 4. h3 {[%emt 0:01:02]} d5 {[%emt 0:01:00]} 5. Nf3 {[%emt 0:00:36]} dxe4 {[%emt 0:01:50]} 6. Nxe4 {[%emt 0:00:06]} Nd7 {[%emt 0:00:10]} 7. Bc4 {[%emt 0:06:24]} Ngf6 {[%emt 0:02:39]} 8. Nxf6+ {[%emt 0:02:42]} Nxf6 {[%emt 0:00:08]} 9. O-O {[%emt 0:02:04]} O-O {[%emt 0:00:25]} 10. Re1 {[%emt 0:02:13]} Qc7 {[%emt 0:03:49]} 11. Qe2 {[%emt 0:09:01]} e6 {[%emt 0:01:42]} 12. a4 {[%emt 0:07:10]} b6 {[%emt 0:02:11]} 13. Ne5 {[%emt 0:00:49]} Nd5 {[%emt 0:04:05]} 14. Bxd5 {[%emt 0:04:28]} cxd5 {[%emt 0:13:02]} 15. Bf4 {[%emt 0:18:12]} Qb7 16. Ng4 {[%emt 0:00:54]} h5 {[%emt 0:12:46]} 17. Ne5 {[%emt 0:00:30]} Kh7 18. Ra3 {[%emt 0:04:38]} Qe7 {[%emt 0:15:48]} 19. Rf3 {[%emt 0:18:05]} Bd7 {[%emt 0:04:41]} 20. g4 {[%emt 0:03:12]} h4 {[%emt 0:23:37]} 21. Bg5 {[%emt 0:10:33]} Qxg5 {[%emt 0:02:58]} 22. Nxd7 {[%emt 0:00:09]} Bxd4 23. Nxf8+ {[%emt 0:00:33]} Rxf8 {[%emt 0:00:27]} 24. c3 {[%emt 0:01:13]} Bg7 25. Qe3 Qe7 {[%emt 0:04:22]} 26. Qd3 {[%emt 0:04:13]} Qc7 {[%emt 0:02:23]} 27. Qd2 {[%emt 0:01:00]} Kg8 28. Qg5 Qc6 {[%emt 0:00:38]} 29. Qxh4 {[%emt 0:01:26]} d4 {[%emt 0:00:12]} 30. Qg3 {[%emt 0:00:32]} dxc3 {[%emt 0:00:12]} 31. bxc3 {[%emt 0:00:23]} Qxa4 {[%emt 0:00:23]} 32. Qc7 {[%emt 0:00:52]} b5 {[%emt 0:01:05]} 33. Ree3 {[%emt 0:00:30]} a5 {[%emt 0:00:30]} 34. Rd3 {[%emt 0:00:42]} e5 {[%emt 0:03:29]} 35. Rd8 {[%emt 0:00:30]} Qa2 {[%emt 0:00:46]} 36. Rxf8+ {[%emt 0:00:34]} Bxf8 {[%emt 0:00:03]} 37. Qxe5 {[%emt 0:00:30]} a4 {[%emt 0:00:30]} 38. Qxb5 {[%emt 0:00:42]} a3 {[%emt 0:00:09]} 39. c4 {[%emt 0:00:30]} Qa1+ {[%emt 0:01:46]} 40. Kg2 {[%emt 0:00:02]} a2 {[%emt 0:00:00]} 41. Qb8 {[%emt 0:25:41]} Qg7 {[%emt 0:04:12]} 42. Ra3 {[%emt 0:00:30]} a1=Q {[%emt 0:00:30]} 43. Rxa1 {[%emt 0:00:03]} Qxa1 {[%emt 0:00:07]} 44. Qf4 Bc5 45. h4 {[%emt 0:02:44]} Qd4 {[%emt 0:05:18]} 46. Qxd4 {[%emt 0:00:27]} Bxd4 {[%emt 0:00:02]} 47. f4 {[%emt 0:00:39]} Kf8 {[%emt 0:10:24]} 48. Kf3 {[%emt 0:00:32]} Ke7 {[%emt 0:00:16]} 49. Ke4 {[%emt 0:05:31]} Bf2 {[%emt 0:01:46]} 50. h5 {[%emt 0:00:05]} gxh5 {[%emt 0:00:05]} 51. gxh5 {[%emt 0:00:04]} Ke6 {[%emt 0:00:57]} 52. f5+ {[%emt 0:00:24]} Kf6 {[%emt 0:09:18]} 53. h6 {[%emt 0:00:23]} Bc5 {[%emt 0:00:18]} 54. Kd5 {[%emt 0:01:31]} Be3 {[%emt 0:00:12]} 55. h7 {[%emt 0:00:41]} Kg7 {[%emt 0:00:09]} 56. c5 {[%emt 0:00:46]} Kxh7 {[%emt 0:00:13]} 57. Kd6 {[%emt 0:00:40]} Kg7 {[%emt 0:00:24]} 58. c6 {[%emt 0:00:18]} Kf6 {[%emt 0:00:24]} 59. Kd7 {[%emt 0:00:10]} Bf4 {[%emt 0:01:21]} 60. Ke8 {[%emt 0:00:01]} Bd6 {[%emt 0:01:05]} 61. Kd7 {[%emt 0:00:08]} Bf4 {[%emt 0:02:11]} 62. Ke8 {[%emt 0:00:02]} Bg3 {[%emt 0:01:31]} 63. Kf8 {[%emt 0:00:16]} Bf4 {[%emt 0:01:24]} 64. Ke8 {[%emt 0:00:06]} Bd6 {[%emt 0:00:51]} 65. Kd7 {[%emt 0:00:10]} Bh2 {[%emt 0:00:32]} 66. Ke8 {[%emt 0:00:42]} Bb8 {[%emt 0:00:34]} 67. Kf8 {[%emt 0:00:12]} Bd6+ {[%emt 0:00:25]} 68. Ke8 {[%emt 0:00:30]} Bc7 {[%emt 0:00:32]} 69. Kd7 {[%emt 0:00:31]} Bb6 {[%emt 0:00:21]} 70. Ke8 {[%emt 0:00:06]} Ba5 {[%emt 0:00:13]} 71. Kf8 {[%emt 0:00:09]} Bb6 {[%emt 0:00:27]} 72. Ke8 {[%emt 0:00:06]} Kg7 {[%emt 0:00:50]} 73. Kd7 {[%emt 0:01:02]} Ba5 {[%emt 0:00:21]} 74. Ke8 {[%emt 0:01:07]} Bc7 {[%emt 0:00:09]} 75. Kd7 {[%emt 0:00:08]} Be5 {[%emt 0:00:03]} 76. Ke8 {[%emt 0:01:03]} Kf6 {[%emt 0:01:27]} 77. Kf8 {[%emt 0:00:07]} Bb8 {[%emt 0:00:35]} 78. Ke8 {[%emt 0:00:08]} Bd6 {[%emt 0:00:16]} 79. Kd7 {[%emt 0:00:49]} Be5 1/2-1/2

[Event "8. Arber-Schachopen 2019"]
[Site "Bodenmais"]
[Date "2019.07.30"]
[Round "4.8"]
[White "Hoffmann, Michael"]
[Black "Hoffmann, Tim"]
[Result "1-0"]
[ECO "A29"]
[WhiteElo "2438"]
[BlackElo "2147"]
[Annotator "ChessBase"]
[PlyCount "109"]
[EventDate "2019.07.27"]
[EventCountry "GER"]
[SourceTitle "playchess.com"]
[Source "ChessBase"]
[SourceQuality "1"]
[TimeControl "40/5400+30:1800+30"]

1. c4 {[%emt 0:00:00]} e5 {[%emt 0:00:00]} 2. Nc3 {[%emt 0:00:54]} Nf6 {[%emt 0:00:00]} 3. Nf3 {[%emt 0:00:31]} Nc6 {[%emt 0:00:07]} 4. g3 {[%emt 0:01:22]} d5 {[%emt 0:00:26]} 5. cxd5 {[%emt 0:00:10]} Nxd5 {[%emt 0:00:05]} 6. Bg2 {[%emt 0:03:36]} Nb6 {[%emt 0:00:26]} 7. O-O {[%emt 0:00:22]} Be7 {[%emt 0:00:19]} 8. a3 {[%emt 0:01:16]} O-O {[%emt 0:01:34]} 9. b4 {[%emt 0:00:56]} a6 {[%emt 0:04:25]} 10. d3 {[%emt 0:01:39]} Be6 {[%emt 0:00:45]} 11. Bb2 {[%emt 0:02:21]} f5 {[%emt 0:03:49]} 12. Rc1 {[%emt 0:02:56]} Bf6 {[%emt 0:00:32]} 13. Nd2 {[%emt 0:01:07]} Bg5 {[%emt 0:05:52]} 14. Rb1 {[%emt 0:05:16]} Nd5 {[%emt 0:05:20]} 15. Nxd5 {[%emt 0:08:40]} Bxd5 {[%emt 0:00:17]} 16. e4 {[%emt 0:06:20]} fxe4 {[%emt 0:09:53]} 17. Nxe4 {[%emt 0:01:32]} Be7 {[%emt 0:00:39]} 18. Rc1 {[%emt 0:06:59]} Kh8 {[%emt 0:03:15]} 19. Qg4 {[%emt 0:04:39]} Qc8 {[%emt 0:02:25]} 20. Qxc8 {[%emt 0:03:50]} Raxc8 {[%emt 0:00:08]} 21. Nd6 {[%emt 0:09:58]} cxd6 {[%emt 0:31:52]} 22. Bxd5 {[%emt 0:01:33]} Bd8 {[%emt 0:02:35]} 23. Rc2 {[%emt 0:08:10]} Bb6 {[%emt 0:01:57]} 24. Rfc1 {[%emt 0:00:33]} a5 {[%emt 0:11:07]} 25. bxa5 {[%emt 0:14:14]} Bc5 {[%emt 0:00:44]} 26. Rxc5 {[%emt 0:08:48]} dxc5 {[%emt 0:00:25]} 27. Rxc5 {[%emt 0:00:02]} Ra8 {[%emt 0:06:00]} 28. Bxc6 {[%emt 0:01:26]} bxc6 {[%emt 0:00:40]} 29. Bxe5 {[%emt 0:00:13]} Rfd8 {[%emt 0:02:35]} 30. Rxc6 {[%emt 0:02:00]} Rxa5 {[%emt 0:00:32]} 31. d4 {[%emt 0:00:19]} Rda8 {[%emt 0:01:46]} 32. Rc7 {[%emt 0:01:05]} R5a7 {[%emt 0:00:18]} 33. Bxg7+ {[%emt 0:00:17]} Kg8 {[%emt 0:00:05]} 34. Be5 {[%emt 0:00:53]} Rxc7 {[%emt 0:00:31]} 35. Bxc7 {[%emt 0:00:02]} Rxa3 {[%emt 0:00:13]} 36. Bf4 {[%emt 0:00:33]} Kf7 {[%emt 0:00:21]} 37. Kg2 {[%emt 0:00:22]} Ke6 {[%emt 0:00:18]} 38. Be3 {[%emt 0:00:26]} Kd5 {[%emt 0:01:19]} 39. Kf3 {[%emt 0:01:06]} Ra6 {[%emt 0:01:52]} 40. Kf4 {[%emt 0:00:34]} Rc6 {[%emt 0:03:39]} 41. Kf5 {[%emt 0:30:35]} Rc8 {[%emt 0:01:35]} 42. h4 {[%emt 0:00:00]} Rf8+ {[%emt 0:02:14]} 43. Kg5 {[%emt 0:00:00]} Ke4 {[%emt 0:00:15]} 44. Kh6 {[%emt 0:00:00]} Rf7 {[%emt 0:00:04]} 45. g4 {[%emt 0:00:00]} Kf3 {[%emt 0:00:58]} 46. g5 {[%emt 0:00:00]} Kg4 {[%emt 0:00:08]} 47. h5 {[%emt 0:00:00]} Kf5 {[%emt 0:01:12]} 48. d5 {[%emt 0:00:00]} Rd7 {[%emt 0:02:42]} 49. Bc1 {[%emt 0:00:00]} Ra7 {[%emt 0:14:45]} 50. d6 {[%emt 0:00:00]} Rd7 {[%emt 0:03:04]} 51. Ba3 {[%emt 0:00:00]} Ra7 {[%emt 0:00:46]} 52. Bc5 {[%emt 0:00:00]} Rf7 {[%emt 0:00:30]} 53. g6 {[%emt 0:00:00]} hxg6 {[%emt 0:00:43]} 54. hxg6 {[%emt 0:00:00]} Rf6 {[%emt 0:00:16]} 55. d7 {[%emt 0:00:00]} 1-0

[Event "8. Arber-Schachopen 2019"]
[Site "Bodenmais"]
[Date "2019.07.30"]
[Round "4.9"]
[White "Sergeev, Vladimir"]
[Black "Schelle, Artur"]
[Result "1/2-1/2"]
[ECO "B06"]
[WhiteElo "2415"]
[BlackElo "2176"]
[Annotator "ChessBase"]
[PlyCount "108"]
[EventDate "2019.07.27"]
[EventCountry "GER"]
[SourceTitle "playchess.com"]
[Source "ChessBase"]
[SourceQuality "1"]
[TimeControl "40/5400+30:1800+30"]

1. e4 {[%emt 0:02:24]} g6 {[%emt 0:00:18]} 2. d4 {[%emt 0:00:04]} Bg7 {[%emt 0:00:07]} 3. c3 {[%emt 0:00:05]} d6 {[%emt 0:00:27]} 4. Bg5 {[%emt 0:00:29]} Nf6 {[%emt 0:01:13]} 5. Nd2 {[%emt 0:00:05]} h6 {[%emt 0:05:05]} 6. Bh4 {[%emt 0:00:03]} Nbd7 {[%emt 0:06:31]} 7. Bd3 {[%emt 0:01:28]} O-O {[%emt 0:01:22]} 8. Ngf3 {[%emt 0:00:19]} e5 {[%emt 0:00:18]} 9. O-O {[%emt 0:00:12]} Qe8 {[%emt 0:02:35]} 10. Re1 {[%emt 0:00:07]} Nh5 {[%emt 0:04:42]} 11. Nc4 {[%emt 0:03:26]} Nf4 {[%emt 0:00:30]} 12. Bf1 {[%emt 0:00:30]} Nb6 {[%emt 0:10:38]} 13. Ne3 {[%emt 0:08:36]} Bd7 {[%emt 0:09:27]} 14. dxe5 {[%emt 0:01:09]} dxe5 {[%emt 0:00:11]} 15. Nd2 {[%emt 0:00:56]} Ne6 {[%emt 0:09:43]} 16. Qc2 {[%emt 0:02:00]} Bb5 {[%emt 0:02:56]} 17. f3 {[%emt 0:03:48]} a5 {[%emt 0:01:32]} 18. Bxb5 {[%emt 0:03:01]} Qxb5 {[%emt 0:00:06]} 19. a4 {[%emt 0:00:03]} Qc6 {[%emt 0:00:47]} 20. Red1 {[%emt 0:05:31]} Qc5 {[%emt 0:05:11]} 21. Bf2 {[%emt 0:00:31]} Qe7 {[%emt 0:00:07]} 22. Ndc4 {[%emt 0:00:59]} Nxc4 {[%emt 0:00:55]} 23. Nxc4 {[%emt 0:00:03]} Rfd8 {[%emt 0:01:55]} 24. Rxd8+ {[%emt 0:00:20]} Qxd8 {[%emt 0:00:10]} 25. Rd1 {[%emt 0:00:14]} Qe7 {[%emt 0:06:49]} 26. Rd2 {[%emt 0:12:41]} b6 {[%emt 0:01:36]} 27. Ne3 {[%emt 0:08:59]} Rf8 {[%emt 0:07:33]} 28. b4 {[%emt 0:05:04]} axb4 {[%emt 0:00:49]} 29. Nd5 {[%emt 0:00:11]} Qe8 {[%emt 0:00:44]} 30. cxb4 {[%emt 0:01:51]} f5 {[%emt 0:02:56]} 31. b5 {[%emt 0:03:56]} Qf7 {[%emt 0:02:47]} 32. h3 {[%emt 0:03:57]} Rd8 {[%emt 0:02:48]} 33. Be3 {[%emt 0:01:17]} Rd7 {[%emt 0:01:46]} 34. Nb4 {[%emt 0:08:18]} Rxd2 {[%emt 0:00:23]} 35. Qxd2 {[%emt 0:01:02]} fxe4 {[%emt 0:00:32]} 36. fxe4 {[%emt 0:00:03]} Kh7 {[%emt 0:02:35]} 37. Qd5 {[%emt 0:01:15]} Qf6 {[%emt 0:01:17]} 38. Qc6 {[%emt 0:07:28]} Qf7 {[%emt 0:02:11]} 39. Qc4 {[%emt 0:00:28]} Bf8 {[%emt 0:03:45]} 40. Nd3 {[%emt 0:02:09]} Bg7 {[%emt 0:01:49]} 41. Bf2 {[%emt 0:39:05]} Qe7 {[%emt 0:04:06]} 42. Kh2 {[%emt 0:00:00]} Nf4 {[%emt 0:03:55]} 43. Nb4 {[%emt 0:00:00]} Bf8 {[%emt 0:06:17]} 44. Nd5 {[%emt 0:00:00]} Nxd5 {[%emt 0:00:10]} 45. exd5 {[%emt 0:00:00]} Qf7 {[%emt 0:00:26]} 46. Bg3 {[%emt 0:00:00]} Bd6 {[%emt 0:00:33]} 47. Qc6 {[%emt 0:00:00]} Qe7 {[%emt 0:00:51]} 48. Kg1 {[%emt 0:00:00]} h5 {[%emt 0:02:03]} 49. h4 {[%emt 0:00:00]} Bc5+ {[%emt 0:00:56]} 50. Kh2 {[%emt 0:02:03]} Bd6 {[%emt 0:00:09]} 51. Kg1 {[%emt 0:01:24]} Bc5+ {[%emt 0:00:48]} 52. Kh2 {[%emt 0:01:17]} Bd6 {[%emt 0:00:08]} 53. Kh1 {[%emt 0:01:03]} e4 {[%emt 0:01:47]} 54. Bxd6 {[%emt 0:01:34]} Qxh4+ 1/2-1/2

[Event "8. Arber-Schachopen 2019"]
[Site "Bodenmais"]
[Date "2019.07.30"]
[Round "4.10"]
[White "Villani, Cristian"]
[Black "Woelk, Tom-Frederic"]
[Result "0-1"]
[ECO "A43"]
[WhiteElo "2017"]
[BlackElo "2229"]
[Annotator "NA"]
[PlyCount "56"]
[EventDate "2019.07.27"]
[EventCountry "GER"]
[SourceTitle "playchess.com"]
[Source "ChessBase"]
[SourceQuality "1"]
[TimeControl "40/5400+30:1800+30"]

1. d4 {[%emt 0:00:00]} Nf6 {[%emt 0:00:00]} 2. Nf3 {[%emt 0:00:00]} c5 {[%emt 0:00:39]} 3. d5 {[%emt 0:02:44]} d6 {[%emt 0:02:17]} 4. Nc3 {[%emt 0:03:39]} g6 {[%emt 0:05:19]} 5. e4 {[%emt 0:03:47]} Bg7 {[%emt 0:02:47]} 6. Be2 {[%emt 0:01:27]} O-O {[%emt 0:01:36]} 7. O-O {[%emt 0:00:14]} Bg4 {[%emt 0:02:29]} 8. Nd2 {[%emt 0:03:45]} Bxe2 {[%emt 0:00:11]} 9. Qxe2 {[%emt 0:00:22]} Re8 {[%emt 0:04:41]} 10. Nc4 {[%emt 0:05:12]} e6 {[%emt 0:04:52]} 11. Qf3 {[%emt 0:21:58]} exd5 {[%emt 0:09:11]} 12. exd5 {[%emt 0:00:12]} Nfd7 {[%emt 0:00:40]} 13. Bf4 {[%emt 0:10:55]} Ne5 {[%emt 0:00:53]} 14. Nxe5 {[%emt 0:01:02]} dxe5 {[%emt 0:12:59]} 15. Be3 {[%emt 0:01:21]} Na6 {[%emt 0:01:12]} 16. Rfd1 {[%emt 0:03:04]} f5 {[%emt 0:00:16]} 17. Qe2 {[%emt 0:02:45]} e4 {[%emt 0:01:33]} 18. Qd2 {[%emt 0:01:57]} Qd7 {[%emt 0:04:55]} 19. Bh6 {[%emt 0:05:33]} Bh8 {[%emt 0:01:18]} 20. Rab1 {[%emt 0:05:24]} Nc7 {[%emt 0:04:56]} 21. Ne2 {[%emt 0:01:59]} Nb5 {[%emt 0:03:04]} 22. Nf4 {[%emt 0:01:19]} b6 {[%emt 0:01:56]} 23. c3 {[%emt 0:06:11]} Nd6 {[%emt 0:00:58]} 24. Ne6 {[%emt 0:00:27]} Nc4 {[%emt 0:02:18]} 25. Qe2 {[%emt 0:01:29]} Ne5 {[%emt 0:00:25]} 26. Bf4 {[%emt 0:00:55]} Nd3 {[%emt 0:00:35]} 27. Rxd3 {[%emt 0:01:16]} exd3 {[%emt 0:00:06]} 28. Qxd3 {[%emt 0:00:18]} Rxe6 0-1

[Event "8. Arber-Schachopen 2019"]
[Site "Bodenmais"]
[Date "2019.07.30"]
[Round "4.11"]
[White "Schleich, Theodor"]
[Black "Vuckovic, Zarko"]
[Result "0-1"]
[ECO "C02"]
[WhiteElo "2000"]
[BlackElo "2214"]
[Annotator "ChessBase"]
[PlyCount "114"]
[EventDate "2019.07.27"]
[EventCountry "GER"]
[SourceTitle "playchess.com"]
[Source "ChessBase"]
[SourceQuality "1"]
[TimeControl "40/5400+30:1800+30"]

1. d4 {[%emt 0:00:00]} e6 {[%emt 0:00:00]} 2. e4 {[%emt 0:00:00]} d5 {[%emt 0:00:00]} 3. e5 {[%emt 0:00:00]} c5 {[%emt 0:00:00]} 4. c3 {[%emt 0:00:00]} Qb6 {[%emt 0:00:00]} 5. Nf3 {[%emt 0:01:11]} Bd7 {[%emt 0:00:00]} 6. Be2 {[%emt 0:02:55]} Bb5 {[%emt 0:00:26]} 7. O-O {[%emt 0:00:17]} Bxe2 {[%emt 0:00:40]} 8. Qxe2 {[%emt 0:00:01]} cxd4 {[%emt 0:00:50]} 9. cxd4 {[%emt 0:00:04]} Nc6 {[%emt 0:00:07]} 10. Nc3 {[%emt 0:02:20]} a6 {[%emt 0:02:03]} 11. Be3 {[%emt 0:00:49]} Nge7 {[%emt 0:01:22]} 12. Na4 {[%emt 0:08:09]} Qb5 {[%emt 0:00:48]} 13. Qxb5 {[%emt 0:00:45]} axb5 {[%emt 0:00:06]} 14. Nc3 {[%emt 0:00:48]} Ra5 {[%emt 0:04:35]} 15. a3 {[%emt 0:03:31]} Na7 {[%emt 0:04:10]} 16. b4 {[%emt 0:21:22]} Ra6 {[%emt 0:00:19]} 17. a4 {[%emt 0:00:08]} Nec8 {[%emt 0:05:40]} 18. Nxb5 {[%emt 0:09:39]} Nxb5 {[%emt 0:01:00]} 19. axb5 {[%emt 0:00:02]} Rxa1 {[%emt 0:00:10]} 20. Rxa1 {[%emt 0:00:02]} Kd7 {[%emt 0:00:20]} 21. Bd2 {[%emt 0:00:54]} Be7 {[%emt 0:00:44]} 22. Ne1 {[%emt 0:06:27]} b6 {[%emt 0:01:08]} 23. Nc2 {[%emt 0:05:31]} Kc7 {[%emt 0:01:05]} 24. Kf1 {[%emt 0:01:59]} Kb7 {[%emt 0:00:15]} 25. Ke2 {[%emt 0:00:35]} Na7 {[%emt 0:00:03]} 26. Na3 {[%emt 0:00:06]} Ra8 {[%emt 0:00:08]} 27. Rc1 {[%emt 0:00:47]} Nc8 {[%emt 0:00:07]} 28. Ra1 {[%emt 0:01:01]} Ra4 {[%emt 0:00:05]} 29. Nc2 {[%emt 0:00:04]} Rxa1 {[%emt 0:00:03]} 30. Nxa1 {[%emt 0:00:02]} Na7 {[%emt 0:00:06]} 31. Kd3 {[%emt 0:01:40]} Nxb5 {[%emt 0:00:06]} 32. Nc2 {[%emt 0:00:29]} Kc6 {[%emt 0:00:43]} 33. f4 {[%emt 0:00:31]} Nc7 {[%emt 0:02:38]} 34. Kc3 {[%emt 0:03:20]} Nb5+ {[%emt 0:00:28]} 35. Kd3 {[%emt 0:00:23]} f5 {[%emt 0:06:03]} 36. g3 {[%emt 0:04:52]} Kd7 {[%emt 0:02:51]} 37. Ke2 {[%emt 0:01:38]} Nc7 {[%emt 0:01:44]} 38. Kd3 {[%emt 0:01:56]} h6 {[%emt 0:00:49]} 39. h4 {[%emt 0:00:35]} g6 {[%emt 0:00:06]} 40. Kc3 {[%emt 0:03:05]} Nb5+ {[%emt 0:05:48]} 41. Kb3 {[%emt 0:31:41]} Na7 {[%emt 0:31:05]} 42. Ne1 {[%emt 0:02:28]} Nc6 {[%emt 0:00:40]} 43. Nf3 {[%emt 0:00:08]} b5 {[%emt 0:01:12]} 44. Bc3 {[%emt 0:14:34]} Ke8 {[%emt 0:00:16]} 45. Ne1 {[%emt 0:00:30]} g5 {[%emt 0:00:21]} 46. hxg5 {[%emt 0:00:06]} hxg5 {[%emt 0:00:04]} 47. Nc2 {[%emt 0:00:09]} Kf7 {[%emt 0:00:44]} 48. Na3 {[%emt 0:02:29]} Na7 {[%emt 0:00:03]} 49. Kc2 {[%emt 0:00:32]} Kg6 {[%emt 0:00:04]} 50. Kd3 {[%emt 0:00:14]} Kh5 {[%emt 0:00:08]} 51. Ke3 {[%emt 0:00:18]} Kg4 {[%emt 0:00:04]} 52. Be1 {[%emt 0:00:07]} gxf4+ {[%emt 0:00:57]} 53. gxf4 {[%emt 0:00:08]} Bf8 {[%emt 0:00:04]} 54. Nc2 {[%emt 0:00:00]} Bh6 {[%emt 0:00:00]} 55. Na1 {[%emt 0:00:00]} Bxf4+ {[%emt 0:00:00]} 56. Kd3 {[%emt 0:00:00]} Bh6 {[%emt 0:00:00]} 57. Nb3 {[%emt 0:00:00]} Bf8 {[%emt 0:00:00]} 0-1

[Event "8. Arber-Schachopen 2019"]
[Site "Bodenmais"]
[Date "2019.07.30"]
[Round "4.12"]
[White "Senner, Peter"]
[Black "Brandsma, Romayn"]
[Result "1/2-1/2"]
[ECO "C24"]
[WhiteElo "2231"]
[BlackElo "1957"]
[Annotator "ChessBase"]
[PlyCount "67"]
[EventDate "2019.07.27"]
[EventCountry "GER"]
[SourceTitle "playchess.com"]
[Source "ChessBase"]
[SourceQuality "1"]
[TimeControl "40/5400+30:1800+30"]

1. e4 {[%emt 0:00:00]} e5 {[%emt 0:00:00]} 2. f4 {[%emt 0:00:00]} exf4 {[%emt 0:00:00]} 3. Bc4 {[%emt 0:00:00]} Nf6 {[%emt 0:02:44]} 4. Nc3 {[%emt 0:00:00]} c6 {[%emt 0:00:15]} 5. Qf3 {[%emt 0:00:00]} Bc5 {[%emt 0:21:55]} 6. Nge2 {[%emt 0:03:29]} O-O {[%emt 0:01:27]} 7. d4 {[%emt 0:01:02]} d5 {[%emt 0:02:56]} 8. exd5 {[%emt 0:14:19]} Bg4 {[%emt 0:01:04]} 9. Qxf4 {[%emt 0:00:23]} Bd6 {[%emt 0:01:43]} 10. Qf2 {[%emt 0:08:35]} cxd5 {[%emt 0:02:27]} 11. Bd3 {[%emt 0:00:20]} Nbd7 {[%emt 0:15:12]} 12. O-O {[%emt 0:00:37]} Bh5 {[%emt 0:01:58]} 13. Bg5 {[%emt 0:10:27]} Qc7 {[%emt 0:21:28]} 14. Qh4 {[%emt 0:09:05]} Bg6 {[%emt 0:02:42]} 15. Bxg6 {[%emt 0:21:56]} fxg6 {[%emt 0:01:59]} 16. Rf3 {[%emt 0:02:03]} Rae8 {[%emt 0:03:04]} 17. Rh3 {[%emt 0:02:39]} Nb6 {[%emt 0:04:41]} 18. Rf1 {[%emt 0:01:46]} Nh5 {[%emt 0:00:24]} 19. Rhf3 {[%emt 0:03:39]} Rxf3 {[%emt 0:02:14]} 20. Rxf3 {[%emt 0:00:01]} Be7 {[%emt 0:01:35]} 21. Re3 {[%emt 0:05:10]} Bxg5 {[%emt 0:01:26]} 22. Rxe8+ {[%emt 0:00:19]} Kf7 {[%emt 0:00:07]} 23. Qxg5 {[%emt 0:00:20]} Kxe8 {[%emt 0:00:02]} 24. Nxd5 {[%emt 0:00:12]} Nxd5 {[%emt 0:01:07]} 25. Qxd5 {[%emt 0:00:08]} Qxc2 {[%emt 0:00:21]} 26. Qe5+ {[%emt 0:03:07]} Kf7 {[%emt 0:01:13]} 27. d5 {[%emt 0:05:26]} Qb1+ {[%emt 0:00:12]} 28. Kf2 {[%emt 0:00:06]} Qf5+ {[%emt 0:00:04]} 29. Qxf5+ {[%emt 0:00:03]} gxf5 {[%emt 0:00:06]} 30. Ke3 {[%emt 0:00:03]} Ke7 {[%emt 0:01:26]} 31. Kd4 {[%emt 0:04:16]} Kd6 {[%emt 0:00:49]} 32. Kc4 {[%emt 0:00:20]} Nf6 {[%emt 0:01:02]} 33. Nd4 {[%emt 0:00:31]} Ke5 {[%emt 0:01:08]} 34. Nf3+ {[%emt 0:01:04]} 1/2-1/2